Workbook

Sheet TAR (hidden)
A1: PRIMAS DE TARIFA REGISTRO 2011 AP ESCOLAR
A3: RIESGO | B3: MA | C3: POA | D3: TOTAL | G3: M.A. | H3: POA | J3: RGM | K3: P.N. TOTAL DE RGM
A4: AP ESCOLAR | B4: 0.68 | C4: 0.05 | D4: 0.56 | F4: Anual | G4: =+G6*1.2 -> 0.684 | H4: =+H6*1.2 -> 0.048 | I4: =+I6*1.2 -> 1.404 | J4: =+J6*1.2 -> 80.028 | K4: =+J4*Presentación!$G$21 -> 79947.972
A5: *Cuotas al Millar de Suma Asegurada | F5: Semestral | G5: =+G4*Calculo!$M$26/365 ->  | H5: =+H4*Calculo!$M$26/365 ->  | I5: =+I4*Calculo!$M$26/365 ->  | J5: =+J4*Calculo!$M$26/365 ->  | K5: =+J5*Presentación!$G$21 -> 
F6: Ciclo Escolar | G6: 0.57 | H6: 0.04 | I6: 1.17 | J6: =VLOOKUP(Presentación!$F$21,$A$11:$O$72,$R$11,FALSE) -> 66.69 | K6: =+J6*Presentación!$G$21 -> 66623.31
A7: RGMA | C7: 1.2
A8: *Prima en Pesos Mexicanos
A9: DEDUCIBLE | B9: 0 | C9: 100 | D9: 200 | E9: 300 | F9: 400 | G9: 500 | H9: 600 | I9: 700 | J9: 750 | K9: 800 | L9: 900 | M9: 1000 | N9: 1500 | O9: 2000
A10: Suma Asegurada | B10: *Prima de Tarifa | C10: *Prima de Tarifa | D10: *Prima de Tarifa | E10: *Prima de Tarifa | F10: *Prima de Tarifa | G10: *Prima de Tarifa | H10: *Prima de Tarifa | I10: *Prima de Tarifa | J10: *Prima de Tarifa | K10: *Prima de Tarifa | L10: *Prima de Tarifa | M10: *Prima de Tarifa | N10: *Prima de Tarifa | O10: *Prima de Tarifa
A11: 1000 | B11: =32.16 -> 32.16 | C11: 30.23 | D11: 29.27 | E11: 28.3 | F11: 27.34 | G11: 26.37 | H11: 25.41 | I11: 24.44 | J11: 24.12 | K11: 23.8 | L11: 22.83 | M11: 22.19 | N11: 18.33 | O11: 15.44 | R11: =VLOOKUP(Presentación!D16,$Q$12:$R$25,2,FALSE) -> 11
A12: 2000 | B12: =42.43 -> 42.43 | C12: 39.88 | D12: 38.61 | E12: 37.34 | F12: 36.07 | G12: 34.79 | H12: 33.52 | I12: 32.25 | J12: 31.82 | K12: 31.4 | L12: 30.13 | M12: 29.28 | N12: 24.19 | O12: 20.37 | Q12: 0 | R12: 2
A13: 3000 | B13: 48.44 | C13: 45.53 | D13: 44.08 | E13: 42.63 | F13: 41.17 | G13: 39.72 | H13: 38.27 | I13: 36.81 | J13: 36.33 | K13: 35.85 | L13: 34.39 | M13: 33.42 | N13: 27.61 | O13: 23.25 | Q13: 100 | R13: 3
A14: 4000 | B14: 52.7 | C14: 49.54 | D14: 47.96 | E14: 46.38 | F14: 44.8 | G14: 43.21 | H14: 41.63 | I14: 40.05 | J14: 39.53 | K14: 39 | L14: 37.42 | M14: 36.36 | N14: 30.04 | O14: 25.3 | Q14: 200 | R14: 4
A15: 5000 | B15: 56.01 | C15: 52.65 | D15: 50.97 | E15: 49.29 | F15: 47.61 | G15: 45.93 | H15: 44.25 | I15: 42.57 | J15: 42.01 | K15: 41.45 | L15: 39.77 | M15: 38.65 | N15: 31.93 | O15: 26.88 | Q15: 300 | R15: 5
A16: 6000 | B16: 58.71 | C16: 55.19 | D16: 53.43 | E16: 51.66 | F16: 49.9 | G16: 48.14 | H16: 46.38 | I16: 44.62 | J16: 44.03 | K16: 43.45 | L16: 41.68 | M16: 40.51 | N16: 33.46 | O16: 28.18 | Q16: 400 | R16: 6
A17: 7000 | B17: 60.99 | C17: 57.33 | D17: 55.5 | E17: 53.67 | F17: 51.84 | G17: 50.01 | H17: 48.18 | I17: 46.35 | J17: 45.74 | K17: 45.13 | L17: 43.3 | M17: 42.08 | N17: 34.76 | O17: 29.28 | Q17: 500 | R17: 7
A18: 8000 | B18: 62.97 | C18: 59.19 | D18: 57.3 | E18: 55.41 | F18: 53.52 | G18: 51.64 | H18: 49.75 | I18: 47.86 | J18: 47.23 | K18: 46.6 | L18: 44.71 | M18: 43.45 | N18: 35.89 | O18: 30.23 | Q18: 600 | R18: 8
A19: 9000 | B19: 64.71 | C19: 60.83 | D19: 58.89 | E19: 56.94 | F19: 55 | G19: 53.06 | H19: 51.12 | I19: 49.18 | J19: 48.53 | K19: 47.89 | L19: 45.94 | M19: 44.65 | N19: 36.88 | O19: 31.06 | Q19: 700 | R19: 9
A20: 10000 | B20: 66.28 | C20: 62.3 | D20: 60.31 | E20: 58.33 | F20: 56.34 | G20: 54.35 | H20: 52.36 | I20: 50.37 | J20: 49.71 | K20: 49.05 | L20: 47.06 | M20: 45.73 | N20: 37.78 | O20: 31.81 | Q20: 750 | R20: 10
A21: 11000 | B21: 67.69 | C21: 63.63 | D21: 61.6 | E21: 59.57 | F21: 57.54 | G21: 55.51 | H21: 53.48 | I21: 51.44 | J21: 50.77 | K21: 50.09 | L21: 48.06 | M21: 46.71 | N21: 38.58 | O21: 32.49 | Q21: 800 | R21: 11
A22: 12000 | B22: 68.98 | C22: 64.84 | D22: 62.77 | E22: 60.7 | F22: 58.63 | G22: 56.56 | H22: 54.49 | I22: 52.42 | J22: 51.74 | K22: 51.05 | L22: 48.98 | M22: 47.6 | N22: 39.32 | O22: 33.11 | Q22: 900 | R22: 12
A23: 13000 | B23: 70.16 | C23: 65.95 | D23: 63.85 | E23: 61.74 | F23: 59.64 | G23: 57.53 | H23: 55.43 | I23: 53.32 | J23: 52.62 | K23: 51.92 | L23: 49.81 | M23: 48.41 | N23: 39.99 | O23: 33.68 | Q23: 1000 | R23: 13
A24: 14000 | B24: 71.26 | C24: 66.98 | D24: 64.85 | E24: 62.71 | F24: 60.57 | G24: 58.43 | H24: 56.3 | I24: 54.16 | J24: 53.45 | K24: 52.73 | L24: 50.59 | M24: 49.17 | N24: 40.62 | O24: 34.2 | Q24: 1500 | R24: 14
A25: 15000 | B25: 72.28 | C25: 67.94 | D25: 65.77 | E25: 63.61 | F25: 61.44 | G25: 59.27 | H25: 57.1 | I25: 54.93 | J25: 54.21 | K25: 53.49 | L25: 51.32 | M25: 49.87 | N25: 41.2 | O25: 34.69 | Q25: 2000 | R25: 15
A26: 16000 | B26: 73.24 | C26: 68.85 | D26: 66.65 | E26: 64.45 | F26: 62.25 | G26: 60.06 | H26: 57.86 | I26: 55.66 | J26: 54.93 | K26: 54.2 | L26: 52 | M26: 50.54 | N26: 41.75 | O26: 35.16
A27: 17000 | B27: 74.14 | C27: 69.69 | D27: 67.47 | E27: 65.24 | F27: 63.02 | G27: 60.79 | H27: 58.57 | I27: 56.35 | J27: 55.61 | K27: 54.86 | L27: 52.64 | M27: 51.16 | N27: 42.26 | O27: 35.59
A28: 18000 | B28: 74.98 | C28: 70.48 | D28: 68.23 | E28: 65.98 | F28: 63.73 | G28: 61.48 | H28: 59.23 | I28: 56.98 | J28: 56.24 | K28: 55.49 | L28: 53.24 | M28: 51.74 | N28: 42.74 | O28: 35.99
A29: 19000 | B29: 75.78 | C29: 71.23 | D29: 68.96 | E29: 66.69 | F29: 64.41 | G29: 62.14 | H29: 59.87 | I29: 57.59 | J29: 56.84 | K29: 56.08 | L29: 53.8 | M29: 52.29 | N29: 43.19 | O29: 36.37
A30: 20000 | B30: 76.54 | C30: 71.95 | D30: 69.65 | E30: 67.36 | F30: 65.06 | G30: 62.76 | H30: 60.47 | I30: 58.17 | J30: 57.41 | K30: 56.64 | L30: 54.34 | M30: 52.81 | N30: 43.63 | O30: 36.74
A31: 21000 | B31: 77.27 | C31: 72.63 | D31: 70.32 | E31: 68 | F31: 65.68 | G31: 63.36 | H31: 61.04 | I31: 58.73 | J31: 57.95 | K31: 57.18 | L31: 54.86 | M31: 53.32 | N31: 44.04 | O31: 37.09
A32: 22000 | B32: 77.96 | C32: 73.28 | D32: 70.94 | E32: 68.6 | F32: 66.27 | G32: 63.93 | H32: 61.59 | I32: 59.25 | J32: 58.47 | K32: 57.69 | L32: 55.35 | M32: 53.79 | N32: 44.44 | O32: 37.42
A33: 23000 | B33: 78.62 | C33: 73.9 | D33: 71.54 | E33: 69.19 | F33: 66.83 | G33: 64.47 | H33: 62.11 | I33: 59.75 | J33: 58.97 | K33: 58.18 | L33: 55.82 | M33: 54.25 | N33: 44.81 | O33: 37.74
A34: 24000 | B34: 79.25 | C34: 74.5 | D34: 72.12 | E34: 69.74 | F34: 67.36 | G34: 64.99 | H34: 62.61 | I34: 60.23 | J34: 59.44 | K34: 58.65 | L34: 56.27 | M34: 54.68 | N34: 45.17 | O34: 38.04
A35: 25000 | B35: 79.85 | C35: 75.06 | D35: 72.66 | E35: 70.27 | F35: 67.87 | G35: 65.48 | H35: 63.08 | I35: 60.69 | J35: 59.89 | K35: 59.09 | L35: 56.69 | M35: 55.1 | N35: 45.51 | O35: 38.33
A36: 26000 | B36: 80.43 | C36: 75.6 | D36: 73.19 | E36: 70.78 | F36: 68.37 | G36: 65.95 | H36: 63.54 | I36: 61.13 | J36: 60.32 | K36: 59.52 | L36: 57.11 | M36: 55.5 | N36: 45.85 | O36: 38.61
A37: 27000 | B37: 80.99 | C37: 76.13 | D37: 73.7 | E37: 71.27 | F37: 68.84 | G37: 66.41 | H37: 63.98 | I37: 61.55 | J37: 60.74 | K37: 59.93 | L37: 57.5 | M37: 55.88 | N37: 46.16 | O37: 38.88
A38: 28000 | B38: 81.53 | C38: 76.64 | D38: 74.19 | E38: 71.75 | F38: 69.3 | G38: 66.85 | H38: 64.41 | I38: 61.96 | J38: 61.15 | K38: 60.33 | L38: 57.89 | M38: 56.26 | N38: 46.47 | O38: 39.13
A39: 29000 | B39: 82.05 | C39: 77.13 | D39: 74.67 | E39: 72.2 | F39: 69.74 | G39: 67.28 | H39: 64.82 | I39: 62.36 | J39: 61.54 | K39: 60.72 | L39: 58.26 | M39: 56.61 | N39: 46.77 | O39: 39.38
A40: 30000 | B40: 82.55 | C40: 77.6 | D40: 75.12 | E40: 72.64 | F40: 70.17 | G40: 67.69 | H40: 65.21 | I40: 62.74 | J40: 61.91 | K40: 61.09 | L40: 58.61 | M40: 56.96 | N40: 47.05 | O40: 39.62
A41: 31000 | B41: 83.04 | C41: 78.06 | D41: 75.57 | E41: 73.08 | F41: 70.58 | G41: 68.09 | H41: 65.6 | I41: 63.11 | J41: 62.28 | K41: 61.45 | L41: 58.96 | M41: 57.3 | N41: 47.33 | O41: 39.86
A42: 32000 | B42: 83.51 | C42: 78.5 | D42: 75.99 | E42: 73.49 | F42: 70.98 | G42: 68.48 | H42: 65.97 | I42: 63.47 | J42: 62.63 | K42: 61.8 | L42: 59.29 | M42: 57.62 | N42: 47.6 | O42: 40.08
A43: 33000 | B43: 83.96 | C43: 78.92 | D43: 76.4 | E43: 73.88 | F43: 71.37 | G43: 68.85 | H43: 66.33 | I43: 63.81 | J43: 62.97 | K43: 62.13 | L43: 59.61 | M43: 57.93 | N43: 47.86 | O43: 40.3
A44: 34000 | B44: 84.41 | C44: 79.35 | D44: 76.81 | E44: 74.28 | F44: 71.75 | G44: 69.22 | H44: 66.68 | I44: 64.15 | J44: 63.31 | K44: 62.46 | L44: 59.93 | M44: 58.24 | N44: 48.11 | O44: 40.52
A45: 35000 | B45: 84.84 | C45: 79.75 | D45: 77.2 | E45: 74.66 | F45: 72.11 | G45: 69.57 | H45: 67.02 | I45: 64.48 | J45: 63.63 | K45: 62.78 | L45: 60.24 | M45: 58.54 | N45: 48.36 | O45: 40.72
A46: 36000 | B46: 85.25 | C46: 80.14 | D46: 77.58 | E46: 75.02 | F46: 72.46 | G46: 69.91 | H46: 67.35 | I46: 64.79 | J46: 63.94 | K46: 63.09 | L46: 60.53 | M46: 58.82 | N46: 48.59 | O46: 40.92
A47: 37000 | B47: 85.66 | C47: 80.52 | D47: 77.95 | E47: 75.38 | F47: 72.81 | G47: 70.24 | H47: 67.67 | I47: 65.1 | J47: 64.25 | K47: 63.39 | L47: 60.82 | M47: 59.11 | N47: 48.83 | O47: 41.12
A48: 38000 | B48: 86.05 | C48: 80.89 | D48: 78.31 | E48: 75.72 | F48: 73.14 | G48: 70.56 | H48: 67.98 | I48: 65.4 | J48: 64.54 | K48: 63.68 | L48: 61.1 | M48: 59.37 | N48: 49.05 | O48: 41.3
A49: 39000 | B49: 86.44 | C49: 81.25 | D49: 78.66 | E49: 76.07 | F49: 73.47 | G49: 70.88 | H49: 68.29 | I49: 65.69 | J49: 64.83 | K49: 63.97 | L49: 61.37 | M49: 59.64 | N49: 49.27 | O49: 41.49
A50: 40000 | B50: 86.81 | C50: 81.6 | D50: 79 | E50: 76.39 | F50: 73.79 | G50: 71.18 | H50: 68.58 | I50: 65.98 | J50: 65.11 | K50: 64.24 | L50: 61.64 | M50: 59.9 | N50: 49.48 | O50: 41.67
A51: 41000 | B51: 87.18 | C51: 81.95 | D51: 79.33 | E51: 76.72 | F51: 74.1 | G51: 71.49 | H51: 68.87 | I51: 66.26 | J51: 65.39 | K51: 64.51 | L51: 61.9 | M51: 60.15 | N51: 49.69 | O51: 41.85
A52: 42000 | B52: 87.54 | C52: 82.29 | D52: 79.66 | E52: 77.04 | F52: 74.41 | G52: 71.78 | H52: 69.16 | I52: 66.53 | J52: 65.66 | K52: 64.78 | L52: 62.15 | M52: 60.4 | N52: 49.9 | O52: 42.02
A53: 43000 | B53: 87.89 | C53: 82.62 | D53: 79.98 | E53: 77.34 | F53: 74.71 | G53: 72.07 | H53: 69.43 | I53: 66.8 | J53: 65.92 | K53: 65.04 | L53: 62.4 | M53: 60.64 | N53: 50.1 | O53: 42.19
A54: 44000 | B54: 88.23 | C54: 82.94 | D54: 80.29 | E54: 77.64 | F54: 75 | G54: 72.35 | H54: 69.7 | I54: 67.05 | J54: 66.17 | K54: 65.29 | L54: 62.64 | M54: 60.88 | N54: 50.29 | O54: 42.35
A55: 45000 | B55: 88.56 | C55: 83.25 | D55: 80.59 | E55: 77.93 | F55: 75.28 | G55: 72.62 | H55: 69.96 | I55: 67.31 | J55: 66.42 | K55: 65.53 | L55: 62.88 | M55: 61.11 | N55: 50.48 | O55: 42.51
A56: 46000 | B56: 88.88 | C56: 83.55 | D56: 80.88 | E56: 78.21 | F56: 75.55 | G56: 72.88 | H56: 70.22 | I56: 67.55 | J56: 66.66 | K56: 65.77 | L56: 63.1 | M56: 61.33 | N56: 50.66 | O56: 42.66
A57: 47000 | B57: 89.2 | C57: 83.85 | D57: 81.17 | E57: 78.5 | F57: 75.82 | G57: 73.14 | H57: 70.47 | I57: 67.79 | J57: 66.9 | K57: 66.01 | L57: 63.33 | M57: 61.55 | N57: 50.84 | O57: 42.82
A58: 48000 | B58: 89.51 | C58: 84.14 | D58: 81.45 | E58: 78.77 | F58: 76.08 | G58: 73.4 | H58: 70.71 | I58: 68.03 | J58: 67.13 | K58: 66.24 | L58: 63.55 | M58: 61.76 | N58: 51.02 | O58: 42.96
A59: 49000 | B59: 89.82 | C59: 84.43 | D59: 81.74 | E59: 79.04 | F59: 76.35 | G59: 73.65 | H59: 70.96 | I59: 68.26 | J59: 67.37 | K59: 66.47 | L59: 63.77 | M59: 61.98 | N59: 51.2 | O59: 43.11
A60: 50000 | B60: 90.12 | C60: 84.71 | D60: 82.01 | E60: 79.31 | F60: 76.6 | G60: 73.9 | H60: 71.19 | I60: 68.49 | J60: 67.59 | K60: 66.69 | L60: 63.99 | M60: 62.18 | N60: 51.37 | O60: 43.26
A61: 51000 | B61: 90.41 | C61: 84.99 | D61: 82.27 | E61: 79.56 | F61: 76.85 | G61: 74.14 | H61: 71.42 | I61: 68.71 | J61: 67.81 | K61: 66.9 | L61: 64.19 | M61: 62.38 | N61: 51.53 | O61: 43.4
A62: 52000 | B62: 90.7 | C62: 85.26 | D62: 82.54 | E62: 79.82 | F62: 77.1 | G62: 74.37 | H62: 71.65 | I62: 68.93 | J62: 68.03 | K62: 67.12 | L62: 64.4 | M62: 62.58 | N62: 51.7 | O62: 43.54
A63: 53000 | B63: 90.98 | C63: 85.52 | D63: 82.79 | E63: 80.06 | F63: 77.33 | G63: 74.6 | H63: 71.87 | I63: 69.14 | J63: 68.24 | K63: 67.33 | L63: 64.6 | M63: 62.78 | N63: 51.86 | O63: 43.67
A64: 54000 | B64: 91.26 | C64: 85.78 | D64: 83.05 | E64: 80.31 | F64: 77.57 | G64: 74.83 | H64: 72.1 | I64: 69.36 | J64: 68.45 | K64: 67.53 | L64: 64.79 | M64: 62.97 | N64: 52.02 | O64: 43.8
A65: 55000 | B65: 91.53 | C65: 86.04 | D65: 83.29 | E65: 80.55 | F65: 77.8 | G65: 75.05 | H65: 72.31 | I65: 69.56 | J65: 68.65 | K65: 67.73 | L65: 64.99 | M65: 63.16 | N65: 52.17 | O65: 43.93
A66: 56000 | B66: 91.8 | C66: 86.29 | D66: 83.54 | E66: 80.78 | F66: 78.03 | G66: 75.28 | H66: 72.52 | I66: 69.77 | J66: 68.85 | K66: 67.93 | L66: 65.18 | M66: 63.34 | N66: 52.33 | O66: 44.06
A67: 57000 | B67: 92.06 | C67: 86.54 | D67: 83.77 | E67: 81.01 | F67: 78.25 | G67: 75.49 | H67: 72.73 | I67: 69.97 | J67: 69.05 | K67: 68.12 | L67: 65.36 | M67: 63.52 | N67: 52.47 | O67: 44.19
A68: 58000 | B68: 92.32 | C68: 86.78 | D68: 84.01 | E68: 81.24 | F68: 78.47 | G68: 75.7 | H68: 72.93 | I68: 70.16 | J68: 69.24 | K68: 68.32 | L68: 65.55 | M68: 63.7 | N68: 52.62 | O68: 44.31
A69: 59000 | B69: 92.57 | C69: 87.02 | D69: 84.24 | E69: 81.46 | F69: 78.68 | G69: 75.91 | H69: 73.13 | I69: 70.35 | J69: 69.43 | K69: 68.5 | L69: 65.72 | M69: 63.87 | N69: 52.76 | O69: 44.43
A70: 60000 | B70: 92.82 | C70: 87.25 | D70: 84.47 | E70: 81.68 | F70: 78.9 | G70: 76.11 | H70: 73.33 | I70: 70.54 | J70: 69.62 | K70: 68.69 | L70: 65.9 | M70: 64.05 | N70: 52.91 | O70: 44.55
A71: 100000 | B71: 100.39 | C71: 94.37 | D71: 91.35 | E71: 88.34 | F71: 85.33 | G71: 82.32 | H71: 79.31 | I71: 76.3 | J71: 75.29 | K71: 74.29 | L71: 71.28 | M71: 69.27 | N71: 57.22 | O71: 48.19
A72: 150000 | B72: 106.4 | C72: 100.02 | D72: 96.82 | E72: 93.63 | F72: 90.44 | G72: 87.25 | H72: 84.06 | I72: 80.86 | J72: 79.8 | K72: 78.74 | L72: 75.54 | M72: 73.42 | N72: 60.65 | O72: 51.07

Sheet Calculo (hidden)
A1: BENEFICIO | B1: Cuotas Anual | C1: Cuotas Ciclo Escolar | D1: Cuotas Semestral | E1: Cuotas de Riesgo Semestral | F1: Cuotas de Riesgo Anual | G1: Cuotas de Riesgo Ciclo Escolar | I1: PR | J1: 37.06 | O1: LLAVE DE LLENADO DE INFORMACION
A2: MA | B2: =TAR!G4 -> 0.684 | C2: =PNMA*J7 -> 0.6165369863 | D2: =+TAR!G5 ->  | E2: =ROUND(D2*(1-SUM($B$8:$B$10)),5) ->  | F2: =ROUND(B2*(1-SUM($B$8:$B$10)),5) -> 0.33516 | G2: =ROUND(C2*(1-SUM($B$8:$B$10)),3) -> 0.302 | I2: Asistencias | J2: =+J1/(1-C11) -> 107.4202899 | O2: =IF(DATOS!E6="",1,IF(DATOS!E6="NOMBRE DEL CONTRATANTE",1,0)) -> 0 | Q2: =IF(Calculo!O13=1,"INFORMACION INCOMPLETA, SE DEBERA LLENAR LA INFORMACION REQUERIDA EN LA HOJA DE DATOS DE ESTE COTIZADOR.","") -> 
A3: PO | B3: =TAR!H4 -> 0.048 | C3: =PNPO*J7 -> 0.04326575342 | D3: =TAR!H5 ->  | E3: =ROUND(D3*(1-SUM($B$8:$B$10)),5) ->  | F3: =ROUND(B3*(1-SUM($B$8:$B$10)),5) -> 0.02352 | G3: =ROUND(C3*(1-SUM($B$8:$B$10)),3) -> 0.021 | O3: =IF(DATOS!E8="",1,IF(DATOS!E8="NUMERO DE ALUMNOS",1,0)) -> 0
A4: RGM | B4: =TAR!J4/DATOS!E18*1000 -> 1.60056 | C4: =PNRGM*J7 -> 1.442696548 | D4: =TAR!J5/DATOS!E18*1000 ->  | F4: =ROUND(B4*(1-SUM($B$8:$B$10)),5) -> 0.78427 | G4: =ROUND(C4*(1-SUM($B$8:$B$10)),3) -> 0.707 | I4: 2018-08-20 | J4: 2019-07-15 | K4: 2018-07-02 | L4: 2019-01-02 | O4: =IF(DATOS!E10="",1,0) -> 0
A5: CUD | B5: =G10 -> 95.65217391 | C5: =G10*M27/365 -> 86.2179869 | D5: =G10*M26/365 ->  | F5: =ROUND(B5*(1-SUM($B$8:$B$10)),5) -> 46.86957 | G5: =ROUND(C5*(1-SUM($B$8:$B$10)),3) -> 42.247 | I5: Ciclo | J5: =+J4-I4 -> 329 | O5: =IF(DATOS!E10="Ciclo Escolar",0,IF(DATOS!E12="",1,0)) -> 0
A6: SBAPE0714 | I6: 365 | J6: =I6/2 -> 182.5 | K6: =L4-K4+0.5 -> 184.5 | O6: =IF(DATOS!E14="",1,IF(DATOS!E14="SUMA ASEGURADA MUERTE ACCIDENTAL",1,0)) -> 0
A7: PARÁMETROS | B7: ACTUALES | C7: NUEVOS PARAMETROS | D7: Maximos | J7: =J5/K7 -> 0.901369863 | K7: 365 | O7: =IF(DATOS!E16="",1,IF(DATOS!E16="SUMA ASEGURADA PARA PÉRDIDAS ORGÁNICAS",1,0)) -> 0
A8: ADMON | B8: 0.15 | C8: 0.15 | D8: 0.15 | E8: 0.15 | G8: Urgencias Dentales Anual | J8: =M26/K7 ->  | O8: =IF(DATOS!E18="",1,IF(DATOS!E18="SUMA ASEGURADA REEMBOLSO DE GASTOS MÉDICOS POR ACCIDENTE",1,0)) -> 0
A9: ADQUISICIÓN | B9: 0.3 | C9: 0.355 | D9: 0.3 | E9: 0.398 | G9: Neto | H9: Riesgo | O9: =IF(DATOS!E20="",1,IF(DATOS!E20="DEDUCIBLE EN REEMBOLSO DE GASTOS MÉDICOS",1,0)) -> 0
A10: UTILIDAD | B10: 0.06 | C10: 0.15 | D10: 0.15 | E10: 0.15 | G10: =+H10/(1-C11) -> 95.65217391 | H10: 33 | O10: =IF(DATOS!E22="",1,IF(DATOS!E22="NUMERO DE AGENTE",1,0)) -> 0
B11: =SUM(GSTS1) -> 0.51 | C11: =SUM(C8:C10) -> 0.655 | O11: =IF(DATOS!E24="",1,IF(DATOS!E24="NOMBRE DEL AGENTE",1,0)) -> 0
A12: El monto de los recibos puede variar dependiendo de la vigencia que soliciten. | O12: =IF(DATOS!E26="",1,0) -> 0
O13: =MAX(O2:O12) -> 0
A14: Cuotas nuevos gastos | I14: CALCULO DE PRESENTACION
A15: BENEFICIO | B15: Cuotas Anual | C15: Cuotas Ciclo Escolar | D15: Cuotas Semestral | E15: Cuotas de Riesgo Semestral | F15: Cuotas de Riesgo Anual | G15: Cuotas de Riesgo Ciclo Escolar | J15: Suma asegurada | K15: Participntes | L15: Suma asegurada Total | M15: Prima Neta | N15: Cuotas | P15: ANUAL | Q15: AÑO ESCOLAR | R15: SEMESTRAL
A16: MA | B16: =F2/(1-$C$11) -> 0.9714782609 | C16: =G2/(1-$C$11) -> 0.8753623188 | D16: =E2/(1-$C$11) ->  | E16: =ROUND(D16*(1-SUM($C$8:$C$10)),2) ->  | F16: =ROUND(B16*(1-SUM($C$8:$C$10)),2) -> 0.34 | G16: =ROUND(C16*(1-SUM($C$8:$C$10)),2) -> 0.3 | I16: M.A. | J16: =DATOS!$E$14 -> 130000 | K16: =Presentación!D13 -> 999 | L16: =J16*K16 -> 129870000 | M16: =B16*L16/1000 -> 126165.8817 | N16: =ROUND(M16/Presentación!H19*1000,4) -> 0.9715 | O16: =ROUND(N16*J16/1000,2) -> 126.3 | P16: =O16*K16 -> 126173.7 | Q16: =P16*$J$7 -> 113729.1707 | R16: =P16*$J$8 -> 
A17: PO | B17: =F3/(1-$C$11) -> 0.06817391304 | C17: =G3/(1-$C$11) -> 0.06086956522 | D17: =E3/(1-$C$11) ->  | E17: =ROUND(D17*(1-SUM($C$8:$C$10)),2) ->  | F17: =ROUND(B17*(1-SUM($C$8:$C$10)),2) -> 0.02 | G17: 0.02 | I17: P.O. | J17: =DATOS!$E$16 -> 130000 | K17: =Presentación!D13 -> 999 | L17: =J17*K17 -> 129870000 | M17: =B17*L17/1000 -> 8853.746087 | N17: =ROUND(M17/Presentación!H20*1000,4) -> 0.0682 | O17: =ROUND(N17*J17/1000,2) -> 8.87 | P17: =O17*K17 -> 8861.13 | Q17: =P17*$J$7 -> 7987.155534 | R17: =P17*$J$8 -> 
A18: RGM | B18: 2.273246377 | C18: =G4/(1-$C$11) -> 2.049275362 | E18: =ROUND(D18*(1-SUM($C$8:$C$10)),2) ->  | F18: 0.78 | G18: 0.71 | I18: RGM | J18: =DATOS!$E$18 -> 50000 | K18: =Presentación!D13 -> 999 | L18: =J18*K18 -> 49950000 | M18: 113548.6565 | N18: =ROUND(M18/Presentación!H21*1000,4) -> 2.2732 | O18: =ROUND(N18*J18/1000,2) -> 113.66 | P18: 113546.34 | Q18: 102347.2489
A19: CUD | B19: =F5/(1-$C$11) -> 135.8538261 | C19: 122.4550725 | E19: =ROUND(D19*(1-SUM($C$8:$C$10)),2) ->  | F19: 46.87 | G19: 42.25 | I19: CUD | J19: =DATOS!$E$26 -> NO | K19: =Presentación!D13 -> 999 | M19: =IF(J19="SI",IF(DATOS!E10="Anual",K19*B19,IF(DATOS!E10="Semestral",K19*D19,K19*C19))) -> FALSE
B20: =1-C16/B2 -> -0.279769472 | M20: =ROUND(IF(M18="#NA","#NA",P20),2) -> 248581.17 | P20: =IF(DATOS!$E$10="ANUAL",SUM(P16:P18),IF(DATOS!E10="CICLO ESCOLAR",SUM(Calculo!Q16:Q18),SUM(Calculo!R16:R18))) -> 248581.17
B21: -0.268115942
B22: -0.2803489793
C23: CONTADO | D23: SEMESTRAL | E23: TRIMESTRAL | F23: MENSUAL
A24: Prima Neta Total | C24: =IF(Calculo!O13=1,"INFO. INCOMPLETA",PNETA) -> 248581.17 | D24: =+C24 -> 248581.17 | E24: =+D24 -> 248581.17 | F24: =+E24 -> 248581.17 | J24: Vigencia de la póliza | K24: Inicio | L24: Fin | M24: Dias
A25: Rec. x Pago Fracc. | C25: 0 | D25: =D24*4.73% -> 11757.88934 | E25: =E24*7% -> 17400.6819 | F25: =F24*10% -> 24858.117 | J25: Anual | K25: =IF(DATOS!E10="Anual",DATOS!$E$12,"") -> 2018-07-02 | L25: =IFERROR(K25+365,"") -> 2019-07-02
A26: Derecho de Póliza | C26: 200 | D26: 300 | E26: 300 | F26: 300 | J26: Semestral | K26: =+IF(DATOS!E10="Semestral",DATOS!E12,"") ->  | L26: =IFERROR(EDATE(K26,6),"") ->  | M26: =+L26-K26 -> 
A27: 0.16 | C27: =(C24+C25+C26)*$A$27 -> 39804.9872 | D27: =(D24+D25+D26)*$A$27 -> 41702.24949 | E27: =(E24+E25+E26)*$A$27 -> 42605.0963 | F27: =(F24+F25+F26)*$A$27 -> 43798.28592 | J27: Ciclo Escolar | K27: 2018-08-20 | L27: 2019-07-15 | M27: =+L27-K27 -> 329
A28: Prima Total | C28: =SUM(C24:C27) -> 288586.1572 | D28: =SUM(D24:D27) -> 302341.3088 | E28: =SUM(E24:E27) -> 308886.9482 | F28: =SUM(F24:F27) -> 317537.5729
A29: Prima por Aseg. | C29: =C28/Presentación!$D$13 -> 288.8750322 | D29: =D28/Presentación!$D$13 -> 302.6439528 | E29: =E28/Presentación!$D$13 -> 309.1961443 | F29: =F28/Presentación!$D$13 -> 317.8554283
C31: Desglose de Pagos
C32: CONTADO | D32: SEMESTRAL | E32: TRIMESTRAL | F32: MENSUAL
C33: Único Pago de | D33: Primer Pago de | E33: Primer Pago de | F33: Primer Pago de
C34: =C28 -> 288586.1572 | D34: =((((D24/2)*1.0473)+300)*(1+$A$27)) -> 151344.6544 | E34: =((((E24/4)*1.07)+300)*(1+$A$27)) -> 77482.73705 | F34: =((((F24/12)*1.1)+300)*(1+$A$27)) -> 26780.46441
D35: Segundo Pago de | E35: 3 Pagos de | F35: 11 Pagos de
D36: =((((D24/2)*1.0473))*(1+$A$27)) -> 150996.6544 | E36: =((((E24/4))*1.07)*(1+$A$27)) -> 77134.73705 | F36: =((((F24/12))*1.1)*(1+$A$27)) -> 26432.46441
C38: Comisión del Agente
C39: 0.2
C40: Participación en el Cuaderno de Bonos y Concursos
C41: SI
A45: =+Presentación!H19 -> 129870000 | B45: =B16 -> 0.9714782609 | C45: =+B45*(1-$C$11) -> 0.33516 | D45: =+A45*B45/1000 -> 126165.8817
A46: =+Presentación!H20 -> 129870000 | B46: =B17 -> 0.06817391304 | C46: =+B46*(1-$C$11) -> 0.02352 | D46: =+A46*B46/1000 -> 8853.746087
A47: =+Presentación!H21 -> 49950000 | B47: 2.273246377 | C47: =+B47*(1-$C$11) -> 0.78427 | D47: =+A47*B47/1000 -> 113548.6565
B48: 135.8538261 | C48: =+B48*(1-$C$11) -> 46.86957 | D48: =SUM(D45:D47) -> 248568.2843
A50: =+C50/Presentación!D13 -> 140.1113784 | B50: =+A45 -> 129870000 | C50: =+B50*D50/1000 -> 139971.267 | D50: =+B45/J5*365 -> 1.077779833 | E50: =+D50*(1-$C$11) -> 0.3718340426
A51: =+C51/Presentación!D13 -> 9.832377428 | B51: =+A46 -> 129870000 | C51: =+B51*D51/1000 -> 9822.545051 | D51: =+B46/J5*365 -> 0.07563367253 | E51: =+D51*(1-$C$11) -> 0.02609361702
A52: =+C52/Presentación!D13 -> 126.0995331 | B52: =+A47 -> 49950000 | C52: =+B52*D52/1000 -> 125973.4335 | D52: =+B47/J5*365 -> 2.521990661 | E52: =+D52*(1-$C$11) -> 0.8700867781
C53: =SUM(C50:C52) -> 275767.2456
C54: =+C53/365*J5 -> 248568.2843
C55: =+F62*Presentación!D13 -> 0 | D55: =+C55+C54 -> 248568.2843
A58: Anuales | D58: ciclo | E58: anual | F58: Asistencias anuales | G58: Asistencias ciclo
A59: 6 | B59: 23 | C59: 6 | D59: 19 | E59: =+D59/J5*365 -> 21.07902736 | F59: =+E59/(1-$C$11) -> 61.09863002 | G59: =+F59/365*J5 -> 55.07246377
A60: 7 | B60: 21 | C60: 7 | D60: 18.06 | E60: =+D60/J5*365 -> 20.03617021 | F60: =+E60/(1-$C$11) -> 58.07585569 | G60: =+F60/365*J5 -> 52.34782609
B61: =+B60+B59 -> 44 | D61: =+D60+D59 -> 37.06 | E61: =+E60+E59 -> 41.11519757 | F61: =+F60+F59 -> 119.1744857 | G61: =+G60+G59 -> 107.4202899
B62: =+B61/(1-C11) -> 127.5362319

Sheet Presentación (hidden)
F3: Cotización Accidentes Personales ESCOLAR 2018-2019
I5: =TODAY() -> 2018-07-20
B6: NOMBRE DEL CLIENTE
B7: =IF(DATOS!$E$6="NOMBRE DEL CONTRATANTE","Ingrese el Nombre del Contratante",DATOS!$E$6) -> SEGUROS BANORTE
B10: CONDICIONES
B11: Póliza Nueva
B12: Periodo Cubierto | D12: =+IF(DATOS!E10="Anual",Calculo!K25,IF(DATOS!E10="Semestral",Calculo!K26,Calculo!K27)) -> 2018-07-02 | E12: =+IF(DATOS!E10="Anual",Calculo!L25,IF(DATOS!E10="Semestral",Calculo!L26,Calculo!L27)) -> 2019-07-02
B13: No de Alumnos | D13: =IF(DATOS!$E$8="","Ingresar el numero de alumnos",DATOS!$E$8) -> 999
B14: Ramo | D14: 30069
B15: Participación de Dividendos | D15: Sin Participación
B16: Deducible en Reembolso de Gastos Médicos | D16: =IF(DATOS!$E$20="","Ingresar Deducible en Reembolso de G.M.",IF(DATOS!$E$20="DEDUCIBLE EN REEMBOLSO DE GASTOS MÉDICOS","Ingresar Deducible en Reembolso de G.M.",DATOS!$E$20)) -> 800
B18: Clave de Cobertura | C18: Nombre de Cobertura | D18: Edad Min. | E18: Edad Max. | F18: Regla de Suma Asegurada | G18: No. de Aseg. por Cobertura | H18: Suma Asegurada Total
B19: MA | C19: 1 Muerte Accidental | D19: 3 Meses | E19: 70 Años | F19: =IF(DATOS!$E$14="SUMA ASEGURADA MUERTE ACCIDENTAL","",DATOS!E14) -> 130000 | G19: =D13 -> 999 | H19: =IFERROR(G19*F19,"") -> 129870000
B20: POA | C20: 2 Pérdidas Orgánicas "A" | D20: 3 Meses | E20: 70 Años | F20: =IF(DATOS!$E$16="SUMA ASEGURADA PARA PÉRDIDAS ORGÁNICAS","",DATOS!$E$16) -> 130000 | G20: =G19 -> 999 | H20: =IFERROR(F20*G20,"") -> 129870000
B21: RGM | C21: 11 Reembolso de Gastos Médicos por Accidente* | D21: 3 Meses | E21: 70 Años | F21: =IFERROR(IF(DATOS!$E$18>$F$19*0.5,"S.A. INVALIDA",DATOS!$E$18),"") -> 50000 | G21: =G20 -> 999 | H21: =IFERROR(IF(F21>(F19*0.5),"S.A INVALIDA",G21*F21),"") -> 49950000
B23: CUD | C23: 12 Cobertura de Urgencia Dental | D23: =IF(DATOS!$E$27="COBERTURA DE URGENCIAS DENTALES","EXCLUIDA",IF(DATOS!$E$26="SI","AMPARADA","EXCLUIDA")) -> EXCLUIDA
B25: COSTO DE COTIZACIÓN | F25: Forma de Pago | H25: Primer Recibo | I25: Recibos Subsecuentes | J25: Total
B26: Prima Neta Total | D26: =Calculo!C24 -> 248581.17 | F26: ANUAL | H26: =+D30 -> 288586.1572 | I26: 0 | J26: =+I26+H26 -> 288586.1572
B27: Prima Neta por Asegurado | D27: =D26/D13 -> 248.83 | F27: SEMESTRAL (Recargo 4.73%) | H27: =IF(J26<1000,"",(D26/2*(1+4.73%)+D28)*1.16) -> 151228.6544 | I27: =IF(J26<1000,"",(D26/2*(1+4.73%))*1.16) -> 150996.6544 | J27: =IFERROR(I27+H27,"") -> 302225.3088
B28: Derecho de Póliza | D28: =Calculo!C26 -> 200 | F28: TRIMESTRAL (Recargo 7%) | H28: =IF(J26<1000,"",(D26/4*(1+7%)+D28)*1.16) -> 77366.73705 | I28: =IF(J26<1000,"",(D26/4*(1+7%))*1.16) -> 77134.73705 | J28: =IFERROR(I28*3+H28,"") -> 308770.9482
B29: I.V.A. (16%) | D29: =Calculo!C27 -> 39804.9872 | F29: MENSUAL (Recargo 10%) | H29: =IF(J26<1000,"",(D26/12*(1+10%)+D28)*1.16) -> 26664.46441 | I29: =IF(J26<1000,"",(D26/12*(1+10%))*1.16) -> 26432.46441 | J29: =IFERROR(I29*11+H29,"") -> 317421.5729
B30: Prima Total | D30: =Calculo!C28 -> 288586.1572
B31: Prima Total por Asegurado | D31: =Calculo!C29 -> 288.8750322
B33: Datos del Agente
B34: =+DATOS!E22 -> 211
B35: =+DATOS!E24 -> AGENTE
B37: El presente ha sido elaborado con las bases enviadas para su cálculo, por lo que sólo es una propuesta de cotización, ya que para la emisión de la póliza se considerará, número de participantes, edad real o R.F.C., puesto y descripción de actividad, de lo contrario no será responsabilidad de la Compañía la aceptación del mismo.
B40: * Para la presente cotizaciòn aplica PAGO DIRECTO en Hospitales de convenio con Seguros Banorte para este producto (estancia mayor a 24 hrs).
B42: La presente cotización tiene una vigencia de 30 días.
B44: La cobertura de Gastos Funerarios aplica para participantes de 3 meses a 11 años de edad.
B45: La cobertura de Muerte Accidental aplica para participantes de 12 a 70 años de edad.
B46: Se ofrece pago fraccionado exclusivamente para aquellas pólizas que rebasen los $1,000 pesos de Prima Total.
B48: La protección que otorga este cobertura es exclusivamente para la actividad escolar. La actividad escolar comprende desde el momento en que los asegurados inicien el viaje ininterrumpido de su casa a la escuela por cualquier medio de transporte, excepto en motocicleta o motoneta, su estancia en el edificio y/o predio de la escuela y el viaje ininterrumpido de regreso a su domicilio. Así mismo las excursiones, eventos deportivos y otras actividades, siempre que se encuentren organizadas y supervisadas por la autoridad de la escuela.
B50: ESTA COTIZACION NO ES VÁLIDA PARA PÓLIZAS DE RENOVACIÓN
B52: * La presente cotización incluye la cobertura de asistencias.
B53: Tarifa vig. a partir del 01 de julio de 2018
B54: Favor de anexar la presente cotización a su solicitud de Emisión. | K54: Ave. Hidalgo # 250 Pte. Zona Centro C.P.64000
K55: Monterrey, Nuevo León T. 8122-0200
B56: =CONCATENATE(B59,B60) -> 000/1.1,0.9715/1.2,0.0682/1.11,2.2732/1.12,0000/R.1,0.3352/R.2,0.0235/R.11,0.7843/R.12,0 | K56: ESPACIO SB
B59: =IFERROR(CONCATENATE("000/1.1,",ROUND(Calculo!B45,4),"/1.2,",ROUND(Calculo!B46,4),"/1.11,",ROUND(Calculo!B47,4),"/1.12,",IF(D23="AMPARADA",ROUND(Calculo!$B$19,4),0)),"") -> 000/1.1,0.9715/1.2,0.0682/1.11,2.2732/1.12,0
B60: =IFERROR(CONCATENATE("000/R.1,",ROUND(Calculo!C45,4),"/R.2,",ROUND(Calculo!C46,4),"/R.11,",ROUND(Calculo!C47,4),"/R.12,",IF(D23="AMPARADA",ROUND(Calculo!$C$48,4),0)),"") -> 000/R.1,0.3352/R.2,0.0235/R.11,0.7843/R.12,0

Sheet DATOS
H2: FOLIO:
B4: Cotización Accidentes Personales ESCOLAR 2018-2019 (Registro de Información) | P4: S.A. M.A. | Q4: S.A. RGM
P5: 10000 | Q5: 5000
B6: 1.- | C6: *Especifique el Nombre del Contratante: | E6: SEGUROS BANORTE | P6: 20000 | Q6: 10000
P7: 30000 | Q7: 15000
B8: 2.- | C8: *Especifique el Numero de Alumnos: | E8: 999 | P8: 40000 | Q8: 20000
P9: 50000 | Q9: 25000
B10: 3.- | C10: *Especifique vigencia: | E10: Anual | P10: 60000 | Q10: 30000
P11: 70000 | Q11: 35000
B12: 4.- | C12: *Especifique fecha de inicio de vigencia: | E12: 2018-07-02 | P12: 80000 | Q12: 40000
P13: 90000 | Q13: 45000
B14: 5.- | C14: *Especifique la Suma Asegurada para Cobertura de Muerte Accidental | E14: 130000 | P14: 100000 | Q14: 50000
P15: 110000 | Q15: 55000
B16: 6.- | C16: *Suma Asegurada para Cobertura de Pérdidas Orgánicas | E16: =IF($E$14="SUMA ASEGURADA MUERTE ACCIDENTAL","SUMA ASEGURADA PARA PÉRDIDAS ORGÁNICAS",$E$14) -> 130000 | P16: 120000 | Q16: 60000
P17: 130000 | Q17: 100000
B18: 7.- | C18: =IF(Presentación!$F$21="S.A. INVALIDA","LA SUMA ASEGURADA DE LA COBERTURA DE REEMBOLSO DE G.M. NO DEBE SER MAYOR AL 50% DE LA S.A. DE LA COBERTURA DE MUERTE ACCIDENTAL","*Especifique la Suma Asegurada para Cobertura de Reembolso de Gastos Médicos por Accidente") -> *Especifique la Suma Asegurada para Cobertura de Reembolso de Gastos Médicos por Accidente | E18: 50000 | P18: 140000
P19: 150000
B20: 8.- | C20: *Seleccione el Deducible en Reembolso de Gastos Médicos | E20: 800 | P20: 160000
P21: 170000
B22: 9.- | C22: *Especifique el Numero de Agente | E22: 211 | P22: 180000
P23: 190000
B24: 10.- | C24: *Especifique el Nombre del Agente | E24: AGENTE | P24: 200000
B26: 11.- | C26: *Especifique si desea contratar la Cobertura Opcional de Urgencias Dentales. | E26: NO
C28: =IF(Calculo!O13=1,"*DATOS REQUERIDOS PARA GENERAR PROPUESTA",IF(C18="LA SUMA ASEGURADA DE LA COBERTURA DE REEMBOLSO DE G.M. NO DEBE SER MAYOR AL 50% DE LA S.A. DE LA COBERTURA DE MUERTE ACCIDENTAL","LA S.A. DE REEMBOLSO DE G.M. POR ACCIDENTE NO ES VALIDA","LA PROPUESTA ESTA LISTA PARA SU IMPRESION EN PDF")) -> LA PROPUESTA ESTA LISTA PARA SU IMPRESION EN PDF
